bitfinex-derivatives/quotes_BTCF0:USTF0_20260106
["timestamp","ask_amount","ask_price","bid_price","bid_amount"]
[1767699185385,0.03467729,93838.0,93822.0,0.010662]
[1767699185783,0.03467729,93838.0,93820.0,0.010662]
[1767699185983,0.03467729,93838.0,93820.0,0.09496791]
[1767699186288,0.01066,93837.0,93820.0,0.09496791]
[1767699187186,0.01066,93836.0,93820.0,0.08430591]
[1767699187391,0.01066,93836.0,93817.0,0.09064]
[1767699187590,0.03467729,93836.0,93817.0,0.09064]
[1767699188285,0.02401729,93836.0,93817.0,0.09064]
[1767699188485,0.03467729,93836.0,93819.0,0.010662]
[1767699188686,0.02401729,93836.0,93817.0,0.09064]
[1767699188892,0.01066,93837.0,93820.0,0.010662]
[1767699189590,0.01066,93837.0,93820.0,0.09497644]
[1767699190989,0.01066,93839.0,93821.0,0.010662]
[1767699191187,0.02401729,93840.0,93823.0,0.010662]
[1767699191386,0.09064,93844.0,93827.0,0.09461654]
[1767699191593,0.09064,93844.0,93830.0,0.010661]
[1767699192186,0.09064,93844.0,93827.0,0.10527754]
[1767699194493,0.09064,93844.0,93829.0,0.010661]
[1767699195093,0.09064,93844.0,93827.0,0.09227754]
[1767699195294,0.09064,93844.0,93827.0,0.10293854]
[1767699195488,0.11465729,93844.0,93827.0,0.10293854]
[1767699196196,0.11465729,93844.0,93827.0,0.010661]
[1767699196998,0.12531629,93844.0,93827.0,0.010661]
[1767699197200,0.12531629,93844.0,93825.0,0.010661]
[1767699197399,0.03467629,93843.0,93825.0,0.010661]
[1767699198603,0.03467629,93843.0,93822.0,0.09461654]
[1767699200206,0.03467629,93843.0,93826.0,0.010661]
[1767699200705,0.02401729,93842.0,93826.0,0.010661]
[1767699202800,0.02401729,93841.0,93822.0,0.07327754]
[1767699203006,0.02401729,93840.0,93820.0,0.08543932]
[1767699203207,0.02401729,93840.0,93818.0,0.1338687]
[1767699203405,0.02401729,93840.0,93824.0,0.010661]
[1767699204394,0.02401729,93838.0,93824.0,0.010661]
[1767699205704,0.09830859,93839.0,93817.0,0.18525654]
[1767699205910,0.101299,93844.0,93818.0,0.09461654]
[1767699206094,0.02401729,93843.0,93818.0,0.09461654]
[1767699206302,0.02401729,93843.0,93827.0,0.010661]
[1767699206502,0.02401729,93842.0,93827.0,0.010661]
[1767699207912,0.12232588,93842.0,93827.0,0.010661]
[1767699208103,0.02401729,93841.0,93827.0,0.010661]
[1767699208304,0.02401729,93841.0,93825.0,0.010661]
[1767699210617,0.02401729,93841.0,93818.0,0.08927754]
[1767699210916,0.02401729,93841.0,93825.0,0.010661]
[1767699212507,0.02327841,93840.0,93825.0,0.010661]
[1767699214202,0.02327841,93840.0,93818.0,0.17384111]
[1767699214408,0.02327841,93840.0,93819.0,0.09069883]
[1767699214707,0.02327841,93840.0,93828.0,0.010661]
[1767699216524,0.09823127,93841.0,93830.0,0.010661]
[1767699216710,0.053206,94007.0,93821.0,0.10136083]
[1767699216711,0.09064,93852.0,93829.0,0.09069883]
[1767699216911,0.12150968,93852.0,93829.0,0.09069883]
[1767699217125,0.02327841,93851.0,93835.0,0.01066]
[1767699217314,0.02327841,93850.0,93835.0,0.01066]
[1767699217925,0.02327841,93850.0,93832.0,0.01066]
[1767699218114,0.02327841,93850.0,93834.0,0.01066]
[1767699218313,0.02327841,93850.0,93829.0,0.08935883]
[1767699219127,0.02327841,93850.0,93835.0,0.01066]
[1767699219719,0.12150968,93850.0,93835.0,0.01066]
[1767699219913,0.02327841,93849.0,93832.0,0.01066]
[1767699220523,0.09823127,93847.0,93829.0,0.010661]
[1767699220827,0.02327841,93849.0,93828.0,0.09069883]
[1767699221524,0.02327841,93849.0,93834.0,0.01066]
[1767699223423,0.02327841,93849.0,93831.0,0.010661]
[1767699223629,0.02327841,93845.0,93828.0,0.010661]
[1767699224121,0.02327841,93844.0,93827.0,0.09064]
[1767699226027,0.02327841,93844.0,93827.0,0.08164]
[1767699229220,0.02327841,93844.0,93827.0,0.092301]
[1767699229423,0.02327841,93843.0,93827.0,0.08164]
[1767699229815,0.02327841,93842.0,93823.0,0.09069883]
[1767699230017,0.02327841,93839.0,93821.0,0.010662]
[1767699230223,0.02327841,93836.0,93821.0,0.09064]
[1767699231224,0.02327841,93839.0,93821.0,0.09064]
[1767699231418,0.02327841,93842.0,93823.0,0.010662]
[1767699231619,0.02327841,93841.0,93823.0,0.010662]
[1767699232432,0.02327841,93841.0,93821.0,0.09064]
[1767699232433,0.12150968,93841.0,93821.0,0.09064]
[1767699232631,0.02327841,93840.0,93821.0,0.09064]
[1767699232931,0.02327841,93838.0,93821.0,0.09064]
[1767699233721,0.02327841,93838.0,93821.0,0.08064]
[1767699233921,0.02327841,93837.0,93821.0,0.08064]
[1767699235337,0.02327841,93837.0,93821.0,0.091302]
[1767699239632,0.02113769,93833.0,93818.0,0.010662]
[1767699239821,0.09064,93841.0,93821.0,0.090744]
[1767699240322,0.11177769,93841.0,93821.0,0.090744]
[1767699240635,0.09064,93841.0,93830.0,0.09824379]
[1767699241428,0.09064,93841.0,93830.0,0.08990479]
[1767699241627,0.09064,93841.0,93832.0,0.010661]
[1767699242133,0.09064,93841.0,93830.0,0.09824379]
[1767699243341,0.09064,93841.0,93831.0,0.010661]
[1767699243932,0.09064,93841.0,93830.0,0.09824379]
[1767699244438,0.09064,93841.0,93833.0,0.01066]
[1767699246839,0.09064,93841.0,93830.0,0.10890479]
[1767699248343,0.09064,93841.0,93830.0,0.010661]
[1767699248542,0.09064,93841.0,93830.0,0.10890479]
[1767699249241,0.09064,93841.0,93830.0,0.1961416]
[1767699249435,0.09064,93856.0,93831.0,0.09823681]
[1767699249642,0.09064,93856.0,93840.0,0.09824379]
[1767699250843,0.09064,93856.0,93846.0,0.09824379]
[1767699251042,0.09064,93856.0,93842.0,0.010659]
[1767699251228,0.11080935,93856.0,93842.0,0.010659]
[1767699251541,0.11080935,93856.0,93840.0,0.09824379]
[1767699254048,0.11080935,93856.0,93841.0,0.010659]
[1767699256946,0.11080935,93856.0,93840.0,0.09490279]
[1767699257150,0.11080935,93856.0,93841.0,0.010659]
[1767699257650,0.11080935,93856.0,93840.0,0.09490279]
[1767699259652,0.11080935,93856.0,93841.0,0.010659]
[1767699260248,0.11080935,93856.0,93840.0,0.09490279]
[1767699261153,0.11080935,93856.0,93841.0,0.01066]
[1767699263655,0.02016935,93855.0,93840.0,0.09490279]
[1767699264658,0.02016935,93855.0,93840.0,0.08890279]
[1767699265245,0.03082735,93855.0,93840.0,0.08890279]
[1767699267559,0.02016935,93855.0,93840.0,0.09956279]
[1767699267754,0.02016935,93855.0,93841.0,0.010659]
[1767699272258,0.02016935,93855.0,93840.0,0.08890279]
[1767699272451,0.02016935,93855.0,93840.0,0.09824379]
[1767699273746,0.010657,93864.0,93845.0,0.10890279]
[1767699273951,0.010657,93864.0,93850.0,0.09824379]
[1767699274160,0.03081114,93864.0,93850.0,0.09824379]
[1767699274361,0.02015414,93864.0,93850.0,0.09824379]
[1767699275464,0.02015414,93864.0,93845.0,0.010659]
[1767699275656,0.02015414,93864.0,93850.0,0.09824379]
[1767699277256,0.11079414,93867.0,93850.0,0.09824379]
[1767699277455,0.02015414,93866.0,93850.0,0.09824379]
[1767699278762,0.09064,93867.0,93856.0,0.09824379]
[1767699279971,0.010657,93866.0,93856.0,0.09824379]
[1767699280273,0.010657,93866.0,93850.0,0.19009223]
[1767699280568,0.010657,93866.0,93850.0,0.09824379]
[1767699283262,0.09064,93867.0,93851.0,0.010658]
[1767699283662,0.09064,93867.0,93857.0,0.09824379]
[1767699283862,0.09064,93867.0,93850.0,0.09824379]
[1767699284267,0.101297,93867.0,93850.0,0.09824379]
[1767699287877,0.010657,93865.0,93850.0,0.09824379]
[1767699288869,0.010657,93865.0,93850.0,0.08524379]
[1767699289873,0.12145114,93867.0,93850.0,0.08524379]
[1767699290383,0.12145114,93867.0,93850.0,0.09590179]
[1767699290584,0.11079414,93867.0,93850.0,0.09590279]
[1767699291286,0.03081014,93869.0,93851.0,0.010658]
[1767699291482,0.02015414,93869.0,93850.0,0.09824379]
[1767699292182,0.02015414,93866.0,93850.0,0.09824379]
[1767699292685,0.02015414,93866.0,93850.0,0.18340092]
[1767699293287,0.010657,93865.0,93850.0,0.18340092]
[1767699294389,0.010657,93864.0,93850.0,0.18340092]
[1767699296494,0.010657,93864.0,93850.0,0.08515713]
[1767699296697,0.010657,93864.0,93848.0,0.010659]
[1767699297598,0.010657,93864.0,93847.0,0.09184844]
[1767699297894,0.010657,93864.0,93848.0,0.010659]
[1767699298292,0.0179563,93851.0,93838.0,0.08573933]
[1767699298495,0.0179563,93846.0,93828.0,0.1338687]
[1767699298888,0.0179563,93846.0,93827.0,0.00461774]
[1767699299393,0.0988872,93847.0,93827.0,0.00461774]
[1767699299587,0.0988872,93847.0,93828.0,0.09500856]
[1767699300282,0.0988872,93847.0,93829.0,0.00822867]
[1767699300490,0.1168435,93852.0,93832.0,0.00822867]
[1767699300688,0.0988872,93852.0,93833.0,0.00822867]
[1767699301197,0.1095452,93852.0,93833.0,0.00822867]
[1767699301388,0.01931452,93847.0,93828.0,0.0906]
[1767699301588,0.11625963,93846.0,93828.0,0.0906]
[1767699304298,0.11625963,93846.0,93828.0,0.0686]
[1767699309702,0.11625963,93839.0,93822.0,0.09064]
[1767699309892,0.01931452,93836.0,93820.0,0.09064]
[1767699310197,0.01931452,93835.0,93820.0,0.09064]
[1767699311101,0.09064,93844.0,93813.0,0.08580483]
[1767699311102,0.01931452,93831.0,93813.0,0.08580483]
[1767699311291,0.11625963,93831.0,93814.0,0.09064]
[1767699311693,0.01931452,93835.0,93814.0,0.09739733]
[1767699311903,0.01931452,93835.0,93818.0,0.010662]
[1767699312107,0.01931452,93835.0,93815.0,0.00667754]
[1767699313007,0.01931452,93835.0,93822.0,0.010662]
[1767699313198,0.01931452,93835.0,93819.0,0.010662]
[1767699314908,0.01931452,93835.0,93815.0,0.00667754]
[1767699315911,0.09694511,93836.0,93817.0,0.00669098]
[1767699316616,0.09694511,93836.0,93824.0,0.010661]
[1767699318713,0.09694511,93836.0,93817.0,0.00669098]
[1767699319520,0.09694511,93836.0,93818.0,0.010662]
[1767699319714,0.09694511,93836.0,93817.0,0.00635298]
[1767699321414,0.09694511,93836.0,93824.0,0.010661]
[1767699322415,0.11625963,93836.0,93822.0,0.010662]
[1767699323914,0.01931452,93835.0,93822.0,0.010662]
[1767699324410,0.01931452,93835.0,93817.0,0.00635298]
[1767699324809,0.01931452,93835.0,93815.0,0.09853584]
[1767699325308,0.01931452,93835.0,93822.0,0.010662]
[1767699327020,0.01931452,93835.0,93815.0,0.09853584]
[1767699327223,0.01931452,93835.0,93817.0,0.010662]
[1767699327421,0.01931452,93835.0,93823.0,0.005662]
[1767699327921,0.09694511,93836.0,93816.0,0.00449728]
[1767699328125,0.09064,93844.0,93816.0,0.00449728]
[1767699328126,0.09064,93841.0,93822.0,0.00424542]
[1767699328322,0.09064,93841.0,93824.0,0.00424542]
[1767699328516,0.09064,93841.0,93828.0,0.010661]
[1767699329022,0.09064,93841.0,93824.0,0.00424542]
[1767699329416,0.09064,93841.0,93830.0,0.010661]
[1767699330019,0.09064,93841.0,93827.0,0.010661]
[1767699331326,0.09064,93841.0,93828.0,0.010661]
[1767699331726,0.09064,93841.0,93830.0,0.010661]
[1767699332821,0.01727217,93843.0,93830.0,0.010661]
[1767699333024,0.09694511,93844.0,93824.0,0.00424542]
[1767699333226,0.010658,93853.0,93833.0,0.00276737]
[1767699333425,0.02793017,93853.0,93833.0,0.00276737]
[1767699333721,0.01727217,93851.0,93834.0,0.01066]
[1767699335333,0.11436759,93851.0,93830.0,0.00242737]
[1767699335638,0.11436759,93850.0,93830.0,0.00242737]
[1767699335828,0.01727217,93847.0,93828.0,0.09033331]
[1767699337233,0.01727217,93847.0,93831.0,0.010661]
[1767699338034,0.01727217,93847.0,93828.0,0.09033331]
[1767699339531,0.01727217,93847.0,93831.0,0.010661]
[1767699342227,0.01727217,93847.0,93828.0,0.09033331]
[1767699342734,0.01727217,93845.0,93829.0,0.010661]
[1767699342935,0.01727217,93845.0,93826.0,0.07527587]
[1767699343139,0.01727217,93845.0,93831.0,0.010661]
[1767699344638,0.01727217,93845.0,93828.0,0.010661]
[1767699344831,0.01727217,93845.0,93830.0,0.010661]
[1767699346035,0.01727217,93845.0,93832.0,0.01066]
[1767699347036,0.01727217,93845.0,93833.0,0.01066]
[1767699347448,0.01727217,93845.0,93826.0,0.07527587]
[1767699347930,0.01727217,93845.0,93829.0,0.010661]
[1767699348326,0.01727217,93845.0,93827.0,0.010661]
[1767699349137,0.01727217,93845.0,93826.0,0.07527587]
[1767699350236,0.01727217,93845.0,93827.0,0.010661]
[1767699350727,0.01727217,93845.0,93826.0,0.06993687]
[1767699351337,0.02793117,93845.0,93827.0,0.010661]
[1767699351940,0.01727217,93845.0,93828.0,0.010661]
[1767699352433,0.01727217,93845.0,93826.0,0.06993687]
[1767699352733,0.09709542,93852.0,93831.0,0.01735495]
[1767699352940,0.09064,93862.0,93839.0,0.0278186]
[1767699353133,0.010657,93860.0,93841.0,0.01066]
[1767699353649,0.010657,93860.0,93840.0,0.01066]
[1767699354242,0.101297,93862.0,93842.0,0.010659]
[1767699354840,0.01727217,93861.0,93842.0,0.010659]
[1767699355043,0.01727217,93859.0,93842.0,0.010659]
[1767699355243,0.01727217,93859.0,93843.0,0.010659]
[1767699355539,0.01727217,93859.0,93839.0,0.11364206]
[1767699356141,0.01727217,93859.0,93840.0,0.01836385]
[1767699356326,0.01727217,93859.0,93839.0,0.09648346]
[1767699356531,0.02956849,93855.0,93837.0,0.01066]
[1767699356731,0.02956849,93855.0,93836.0,0.10900385]
[1767699356933,0.01891049,93854.0,93836.0,0.10900385]
[1767699357840,0.010658,93851.0,93836.0,0.09064]
[1767699358042,0.01891049,93840.0,93829.0,0.09064]
[1767699358234,0.01891049,93840.0,93831.0,0.010661]
[1767699358433,0.09315371,93841.0,93829.0,0.09064]
[1767699358434,0.09315371,93841.0,93829.0,0.087301]
[1767699358742,0.01891049,93843.0,93830.0,0.09822403]
[1767699363049,0.02956949,93843.0,93830.0,0.09822403]
[1767699364451,0.01066,93841.0,93830.0,0.09822403]
[1767699364649,0.01066,93841.0,93829.0,0.087301]
[1767699364945,0.01066,93841.0,93830.0,0.09822403]
[1767699366258,0.01066,93841.0,93830.0,0.08622403]
[1767699366665,0.01891049,93843.0,93830.0,0.08622403]
[1767699366858,0.010659,93842.0,93830.0,0.08622403]
[1767699367058,0.01066,93840.0,93830.0,0.09822403]
[1767699368066,0.010659,93844.0,93830.0,0.09822403]
[1767699368269,0.01066,93841.0,93829.0,0.087301]
[1767699368458,0.010659,93844.0,93830.0,0.09822403]
[1767699368657,0.010659,93842.0,93829.0,0.087301]
[1767699368858,0.010659,93842.0,93830.0,0.09822403]
[1767699371763,0.01066,93841.0,93830.0,0.09822403]
[1767699372070,0.010659,93843.0,93830.0,0.09822403]
[1767699372269,0.01066,93842.0,93830.0,0.09822403]
[1767699372968,0.01066,93841.0,93830.0,0.09822403]
[1767699373671,0.010659,93844.0,93830.0,0.09822403]
[1767699373871,0.010659,93842.0,93830.0,0.07422403]
[1767699374570,0.010659,93844.0,93830.0,0.07422403]
[1767699374961,0.12299084,93846.0,93830.0,0.07422403]
[1767699375271,0.010659,93846.0,93830.0,0.07422403]
[1767699376068,0.010659,93848.0,93831.0,0.010661]
[1767699377072,0.010659,93846.0,93830.0,0.09209519]
[1767699377466,0.010659,93846.0,93830.0,0.09822403]
[1767699378372,0.010659,93843.0,93830.0,0.09822403]
[1767699378676,0.01066,93842.0,93830.0,0.09822403]
[1767699378865,0.01917813,93847.0,93830.0,0.09822403]
[1767699378866,0.010659,93844.0,93830.0,0.09822403]
[1767699379371,0.02983713,93847.0,93830.0,0.09822403]
[1767699379874,0.010659,93846.0,93830.0,0.09822403]
[1767699380775,0.010659,93844.0,93830.0,0.09822403]
[1767699381575,0.010659,93844.0,93830.0,0.07822403]
[1767699382174,0.01917813,93847.0,93830.0,0.07822403]
[1767699382566,0.010659,93844.0,93830.0,0.07822403]
[1767699383977,0.010659,93844.0,93829.0,0.097962]
[1767699384175,0.010659,93844.0,93830.0,0.09822403]
[1767699385276,0.010659,93843.0,93830.0,0.09822403]
[1767699385480,0.01066,93841.0,93830.0,0.09822403]
[1767699386076,0.010659,93844.0,93830.0,0.09822403]
[1767699387074,0.01917813,93847.0,93830.0,0.09822403]
[1767699387472,0.09566745,93849.0,93830.0,0.09822403]
[1767699387781,0.010659,93845.0,93830.0,0.09822403]
[1767699387979,0.010659,93844.0,93830.0,0.09822403]
[1767699389582,0.010659,93844.0,93830.0,0.06322402]
[1767699389768,0.010659,93844.0,93830.0,0.0796536]
[1767699390079,0.010659,93844.0,93830.0,0.11407403]
[1767699390381,0.010659,93844.0,93830.0,0.21229806]
[1767699390877,0.010659,93847.0,93830.0,0.21229806]
[1767699391181,0.010659,93846.0,93830.0,0.21229806]
[1767699391677,0.09064,93853.0,93832.0,0.01715404]
[1767699391879,0.010658,93852.0,93840.0,0.09822403]
[1767699394082,0.010659,93850.0,93840.0,0.09822403]
[1767699394487,0.101298,93853.0,93840.0,0.09822403]
[1767699395284,0.09064,93853.0,93840.0,0.09822403]
[1767699395674,0.09064,93853.0,93837.0,0.10817185]
[1767699395879,0.09064,93853.0,93840.0,0.09822403]
[1767699396078,0.09064,93853.0,93837.0,0.10817185]
[1767699396280,0.09064,93853.0,93840.0,0.09822403]
[1767699397085,0.09064,93853.0,93840.0,0.08122403]
[1767699399288,0.010658,93852.0,93840.0,0.09822403]
[1767699399484,0.010658,93852.0,93837.0,0.09223471]
[1767699399787,0.10863851,93853.0,93833.0,0.01582842]
[1767699400189,0.010659,93847.0,93833.0,0.01582842]
[1767699400790,0.010659,93847.0,93837.0,0.09822403]
[1767699401293,0.10863851,93853.0,93837.0,0.09822403]
[1767699401492,0.010659,93848.0,93833.0,0.01582842]
[1767699401693,0.010659,93848.0,93840.0,0.09822403]
[1767699402180,0.010659,93847.0,93831.0,0.09223471]
[1767699402378,0.01799851,93850.0,93831.0,0.09223471]
[1767699402994,0.010659,93844.0,93831.0,0.09223471]
[1767699404197,0.01799851,93847.0,93826.0,0.01423884]
[1767699404496,0.01066,93837.0,93827.0,0.09064]
[1767699404898,0.01066,93837.0,93827.0,0.07164]
[1767699405399,0.01066,93835.0,93827.0,0.09822403]
[1767699405598,0.01066,93835.0,93826.0,0.19711355]
[1767699405997,0.01066,93834.0,93826.0,0.09223471]
[1767699406298,0.01066,93834.0,93824.0,0.09822403]
[1767699406801,0.010661,93832.0,93823.0,0.10518455]
[1767699407599,0.01066,93841.0,93823.0,0.10518455]
[1767699407800,0.010661,93832.0,93823.0,0.09064]
[1767699407999,0.010661,93832.0,93823.0,0.19708647]
[1767699408599,0.01066,93835.0,93823.0,0.19708647]
[1767699408899,0.01066,93839.0,93825.0,0.09822403]
[1767699409098,0.01066,93837.0,93830.0,0.09822403]
[1767699409301,0.01799851,93844.0,93830.0,0.09822403]
[1767699409494,0.01066,93839.0,93830.0,0.09822403]
[1767699409797,0.01066,93840.0,93830.0,0.09822403]
[1767699410301,0.01799851,93847.0,93830.0,0.09822403]
[1767699410504,0.01066,93841.0,93830.0,0.09822403]
[1767699411601,0.01799851,93847.0,93830.0,0.09822403]
[1767699412403,0.01066,93840.0,93830.0,0.09822403]
[1767699413194,0.01066,93838.0,93830.0,0.09822403]
[1767699414418,0.010659,93844.0,93830.0,0.09822403]
[1767699415010,0.09013539,93850.0,93832.0,0.01066]
[1767699415212,0.010659,93849.0,93832.0,0.01066]
[1767699416423,0.010659,93849.0,93834.0,0.01066]
[1767699416921,0.01721436,93849.0,93832.0,0.010661]
[1767699417311,0.010659,93845.0,93830.0,0.21055671]
[1767699417821,0.010659,93843.0,93830.0,0.21055671]
[1767699418222,0.01721436,93849.0,93830.0,0.21055671]
[1767699418521,0.010659,93849.0,93832.0,0.11132463]
[1767699418721,0.010659,93849.0,93833.0,0.11132463]
[1767699419419,0.010659,93849.0,93839.0,0.09822403]
[1767699419621,0.010659,93849.0,93833.0,0.11132463]
[1767699419816,0.01721436,93852.0,93833.0,0.11132463]
[1767699420318,0.01721436,93855.0,93834.0,0.01215895]
[1767699420523,0.01721436,93855.0,93834.0,0.11094921]
[1767699421024,0.010659,93848.0,93834.0,0.11094921]
[1767699422426,0.010659,93851.0,93834.0,0.11094921]
[1767699422722,0.09064,93857.0,93847.0,0.09573024]
[1767699422916,0.010658,93856.0,93847.0,0.09573024]
[1767699423228,0.010658,93857.0,93847.0,0.09573024]
[1767699424423,0.09064,93860.0,93847.0,0.09573024]
[1767699425824,0.010658,93855.0,93847.0,0.09573024]
[1767699426026,0.010658,93854.0,93847.0,0.09573024]
[1767699426223,0.010658,93856.0,93847.0,0.09480482]
[1767699427730,0.010658,93856.0,93847.0,0.08380482]
[1767699428633,0.010658,93859.0,93847.0,0.08428357]
[1767699429230,0.010658,93853.0,93847.0,0.08428357]
[1767699429533,0.010659,93847.0,93835.0,0.00069139]
[1767699429831,0.010659,93847.0,93837.0,0.09549621]
[1767699430233,0.010659,93846.0,93837.0,0.09549621]
[1767699430432,0.010659,93846.0,93838.0,0.00051502]
[1767699431233,0.010659,93846.0,93838.0,0.09531984]
[1767699431436,0.010659,93844.0,93838.0,0.09531984]
[1767699432421,0.010659,93842.0,93838.0,0.09531984]
[1767699432827,0.01066,93841.0,93834.0,0.09064]
[1767699434936,0.01066,93841.0,93835.0,0.09717191]
[1767699435246,0.010659,93844.0,93837.0,0.09687495]
[1767699435429,0.010659,93844.0,93837.0,0.06987495]
[1767699438037,0.010658,93855.0,93837.0,0.06987495]
[1767699438038,0.010659,93847.0,93837.0,0.06987495]
[1767699438536,0.010659,93847.0,93838.0,0.00244675]
[1767699439242,0.01655229,93858.0,93838.0,0.00244675]
[1767699440242,0.010658,93851.0,93838.0,0.00244675]
[1767699441542,0.010659,93849.0,93836.0,0.00230237]
[1767699441746,0.010658,93852.0,93836.0,0.00230237]
[1767699442342,0.010658,93852.0,93837.0,0.00211892]
[1767699443042,0.010658,93852.0,93835.0,0.09458374]
[1767699443540,0.010658,93852.0,93838.0,0.01066]
[1767699444832,0.010658,93855.0,93838.0,0.01066]
[1767699445531,0.010658,93853.0,93838.0,0.01066]
[1767699446345,0.10740792,93858.0,93835.0,0.09458374]
[1767699447144,0.010658,93855.0,93835.0,0.09458374]
[1767699447334,0.010658,93855.0,93839.0,0.01066]
[1767699450745,0.10151363,93858.0,93835.0,0.08324274]
[1767699450943,0.09064,93860.0,93834.0,0.09064]
[1767699450944,0.101297,93860.0,93843.0,0.010659]
[1767699452247,0.101297,93860.0,93844.0,0.010659]
[1767699453345,0.101297,93860.0,93845.0,0.010659]
[1767699454045,0.09388982,93859.0,93843.0,0.010659]
[1767699454242,0.09388982,93855.0,93841.0,0.01066]
[1767699454446,0.09388982,93855.0,93842.0,0.010659]
[1767699458452,0.09388982,93855.0,93840.0,0.01066]
[1767699458653,0.09388982,93855.0,93834.0,0.18774445]
[1767699459047,0.09388982,93855.0,93838.0,0.01066]
[1767699459450,0.1109568,93855.0,93834.0,0.18774445]
[1767699459756,0.1109568,93852.0,93834.0,0.09064]
[1767699460644,0.1109568,93852.0,93835.0,0.09064]
[1767699460843,0.1109568,93851.0,93835.0,0.09064]
[1767699461151,0.010659,93849.0,93835.0,0.09064]
[1767699461954,0.1109568,93851.0,93836.0,0.01066]
[1767699463051,0.010659,93850.0,93836.0,0.01066]
[1767699463554,0.1109568,93851.0,93838.0,0.01066]
[1767699465455,0.1109568,93851.0,93836.0,0.01066]
[1767699465655,0.1216158,93851.0,93834.0,0.01066]
[1767699465857,0.1109568,93847.0,93835.0,0.09064]
[1767699466052,0.09064,93860.0,93835.0,0.09064]
[1767699466053,0.1109568,93846.0,93835.0,0.09064]
[1767699466252,0.1109568,93846.0,93835.0,0.06464]
[1767699466456,0.1109568,93846.0,93834.0,0.01066]
[1767699466752,0.09388982,93846.0,93835.0,0.09064]
[1767699467156,0.09388982,93846.0,93834.0,0.01066]
[1767699467353,0.09388982,93846.0,93835.0,0.09064]
[1767699471160,0.09388982,93846.0,93836.0,0.01066]
[1767699471947,0.09388982,93844.0,93829.0,0.010661]
[1767699472148,0.09388982,93844.0,93830.0,0.09064]
[1767699472649,0.1109568,93844.0,93830.0,0.09064]
[1767699472850,0.1109568,93844.0,93833.0,0.01066]
[1767699473863,0.1109568,93844.0,93835.0,0.01066]
[1767699474058,0.1109568,93844.0,93830.0,0.0333]
[1767699474260,0.09388982,93844.0,93830.0,0.0333]
[1767699475164,0.09388982,93844.0,93836.0,0.01066]
[1767699475352,0.01706698,93848.0,93830.0,0.0333]
[1767699475662,0.01706698,93848.0,93838.0,0.01066]
[1767699476964,0.09388982,93850.0,93840.0,0.01066]
[1767699478179,0.09388982,93850.0,93837.0,0.01066]
[1767699478464,0.09388982,93850.0,93828.0,0.010661]
[1767699478465,0.11062614,93850.0,93839.0,0.01066]
[1767699479865,0.11062614,93850.0,93833.0,0.01066]
[1767699480868,0.11062614,93850.0,93843.0,0.010659]
[1767699481564,0.11062614,93850.0,93833.0,0.01066]
[1767699481759,0.11062614,93850.0,93832.0,0.09064]
[1767699481962,0.11062614,93850.0,93841.0,0.01066]
[1767699484472,0.11062614,93850.0,93840.0,0.09820389]
[1767699485677,0.11062614,93850.0,93842.0,0.010659]
[1767699485972,0.11062614,93850.0,93840.0,0.09820389]
[1767699486269,0.11062614,93850.0,93840.0,0.10886389]
[1767699486571,0.11073543,93849.0,93840.0,0.10886389]
[1767699486775,0.11073543,93849.0,93842.0,0.010659]
[1767699487374,0.09307756,93854.0,93845.0,0.010659]
[1767699488471,0.09064,93858.0,93844.0,0.09820389]
[1767699488682,0.09064,93858.0,93848.0,0.09820389]
[1767699489384,0.09064,93858.0,93848.0,0.09020389]
[1767699489966,0.10373556,93859.0,93848.0,0.09020389]
[1767699490462,0.09064,93865.0,93848.0,0.09020389]
[1767699490463,0.11073543,93856.0,93848.0,0.09020389]
[1767699491175,0.010658,93855.0,93848.0,0.09020389]
[1767699491378,0.010658,93855.0,93845.0,0.09820389]
[1767699492576,0.11073543,93855.0,93833.0,0.01066]
[1767699492777,0.11073543,93855.0,93845.0,0.09820389]
[1767699493579,0.09307756,93855.0,93845.0,0.09820389]
[1767699494481,0.010658,93854.0,93845.0,0.09820389]
[1767699495179,0.010658,93853.0,93845.0,0.09820389]
[1767699495376,0.010658,93853.0,93840.0,0.10886389]
[1767699495569,0.010658,93853.0,93840.0,0.01066]
[1767699495770,0.010658,93853.0,93840.0,0.10886389]
[1767699496982,0.09307756,93855.0,93840.0,0.10886389]
[1767699497182,0.010658,93854.0,93840.0,0.09286389]
[1767699497673,0.09307756,93855.0,93841.0,0.010659]
[1767699501285,0.09307756,93855.0,93843.0,0.010659]
[1767699503783,0.11073543,93855.0,93843.0,0.010659]
[1767699504883,0.11073543,93855.0,93840.0,0.08752289]
[1767699505276,0.11073543,93855.0,93843.0,0.010659]
[1767699505986,0.11073543,93849.0,93841.0,0.01066]
[1767699507679,0.09307756,93849.0,93841.0,0.01066]
[1767699508286,0.09307756,93849.0,93843.0,0.010659]
[1767699508481,0.09307756,93849.0,93841.0,0.01066]
[1767699508782,0.01765787,93857.0,93840.0,0.09820389]
[1767699508979,0.11073543,93854.0,93847.0,0.09820389]
[1767699509285,0.11073543,93854.0,93844.0,0.010659]
[1767699509483,0.11073543,93854.0,93842.0,0.010659]
[1767699509672,0.11073543,93852.0,93842.0,0.010659]
[1767699509872,0.11073543,93852.0,93843.0,0.010659]
[1767699510486,0.11073543,93852.0,93846.0,0.010659]
[1767699511278,0.11014139,93851.0,93846.0,0.010659]
[1767699511479,0.11014139,93851.0,93840.0,0.09820389]
[1767699511686,0.11014139,93851.0,93843.0,0.010659]
[1767699511888,0.11014139,93848.0,93837.0,0.09064]
[1767699512187,0.11014139,93848.0,93840.0,0.09820389]
[1767699512388,0.11014139,93848.0,93844.0,0.010659]
[1767699512589,0.11014139,93848.0,93840.0,0.09786289]
[1767699512885,0.11014139,93848.0,93843.0,0.010659]
[1767699513387,3.9e-07,93848.0,93840.0,0.09786289]
[1767699513687,3.9e-07,93848.0,93844.0,0.010659]
[1767699513886,3.9e-07,93848.0,93845.0,0.010659]
[1767699514087,3.9e-07,93848.0,93846.0,0.010659]
[1767699514487,0.010658,93859.0,93848.0,0.010659]
[1767699514689,0.09064,93865.0,93848.0,0.010659]
[1767699514876,0.09064,93865.0,93840.0,0.09786289]
[1767699515077,0.010657,93862.0,93840.0,0.09786289]
[1767699515282,0.010657,93862.0,93850.0,0.09820389]
[1767699515485,0.01529917,93857.0,93849.0,0.010659]
[1767699517090,0.09484222,93857.0,93847.0,0.09820389]
[1767699517291,0.09484222,93857.0,93853.0,0.010658]
[1767699517494,0.01529917,93860.0,93853.0,0.010658]
[1767699518092,0.01529917,93860.0,93850.0,0.010658]